fUSD/lending_fUSD_20251122
["ID","MTS","AMOUNT","RATE_DAILY","PERIOD"]
[394630737,1763796640382,-500.0,0.00016438,2]
[394630738,1763796640392,-500.0,0.00016438,2]
[394630739,1763796640403,-638.14,0.00016438,2]
[394630740,1763796640412,-500.0,0.00016438,2]
[394630741,1763796640422,-500.0,0.00016438,2]
[394630742,1763796640433,-500.0,0.00016438,2]
[394630743,1763796640443,-500.0,0.00016438,2]
[394630744,1763796640452,-500.0,0.00016438,2]
[394630745,1763796640464,-500.0,0.00016438,2]
[394630746,1763796640477,-500.0,0.00016438,2]
[394630747,1763796640487,-576.17233065,0.00016438,2]
[394630748,1763796640496,-500.0,0.00016438,2]
[394630749,1763796640507,-500.0,0.00016438,2]
[394630750,1763796640517,-500.0,0.00016438,2]
[394630751,1763796640527,-794.89,0.00016438,2]
[394630752,1763796640537,-500.0,0.00016438,2]
[394630753,1763796640547,-500.0,0.00016438,2]
[394630754,1763796640557,-1110.91,0.00016438,2]
[394630755,1763796640567,-500.0,0.00016438,2]
[394630756,1763796640576,-500.0,0.00016438,2]
[394630757,1763796640585,-500.0,0.00016438,2]
[394630758,1763796640594,-500.0,0.00016438,2]
[394630759,1763796640604,-411.50255639,0.00016438,2]
[394630760,1763796640613,-500.0,0.00016438,2]
[394630761,1763796640623,-678.33,0.00016438,2]
[394630762,1763796640633,-500.0,0.00016438,2]
[394630763,1763796640643,-500.0,0.00016438,2]
[394630764,1763796640652,-500.0,0.00016438,2]
[394630765,1763796640661,-500.0,0.00016438,2]
[394630766,1763796640671,-500.0,0.00016438,2]
[394630767,1763796640680,-500.0,0.00016438,2]
[394630768,1763796640691,-852.96,0.00016438,2]
[394630769,1763796640700,-500.0,0.00016438,2]
[394630770,1763796640710,-500.0,0.00016438,2]
[394630772,1763796640721,-1413.37,0.00016438,2]
[394630774,1763796640730,-564.0519765,0.00016438,2]
[394630776,1763796640740,-1196.14,0.00016438,2]
[394630777,1763796640749,-725.27,0.00016438,2]
[394630778,1763796640758,-500.0,0.00016438,2]
[394630779,1763796640767,-500.0,0.00016438,2]
[394630780,1763796640776,-500.0,0.00016438,2]
[394630781,1763796640785,-500.0,0.00016438,2]
[394630782,1763796640796,-896.26,0.00016438,2]
[394630783,1763796640805,-500.0,0.00016438,2]
[394630784,1763796640814,-500.0,0.00016438,2]
[394630785,1763796640823,-500.0,0.00016438,2]
[394630786,1763796640832,-500.0,0.00016438,2]
[394630787,1763796640841,-500.0,0.00016438,2]
[394630788,1763796640850,-500.0,0.00016438,2]
[394630789,1763796640859,-500.0,0.00016438,2]
[394630790,1763796640868,-689.89,0.00016438,2]
[394630791,1763796640878,-500.0,0.00016438,2]
[394630792,1763796640887,-500.0,0.00016438,2]
[394630793,1763796640897,-500.0,0.00016438,2]
[394630794,1763796640906,-500.0,0.00016438,2]
[394630795,1763796640916,-500.0,0.00016438,2]
[394630796,1763796640925,-500.0,0.00016438,2]
[394630797,1763796640934,-500.0,0.00016438,2]
[394630798,1763796640943,-455.25368908,0.00016438,2]
[394630799,1763796640953,-500.0,0.00016438,2]
[394630800,1763796640964,-508.15364529,0.00016438,2]
[394630801,1763796640973,-512.49811268,0.00016438,2]
[394630802,1763796640983,-500.0,0.00016438,2]
[394630803,1763796640992,-500.0,0.00016438,2]
[394630804,1763796641001,-500.0,0.00016438,2]
[394630805,1763796641010,-500.0,0.00016438,2]
[394630806,1763796641019,-500.0,0.00016438,2]
[394630807,1763796641028,-985.45,0.00016438,2]
[394630808,1763796641037,-523.38148311,0.00016438,2]
[394630809,1763796641046,-644.04,0.00016438,2]
[394630810,1763796641055,-500.0,0.00016438,2]
[394630811,1763796641065,-522.45,0.00016438,2]
[394630812,1763796641074,-653.95,0.00016438,2]
[394630813,1763796641083,-500.0,0.00016438,2]
[394630814,1763796641092,-436.81178714,0.00016438,2]
[394630815,1763796641101,-500.0,0.00016438,2]
[394630816,1763796641110,-524.72749282,0.00016438,2]
[394630817,1763796641119,-931.27,0.00016438,2]
[394630818,1763796641129,-500.0,0.00016438,2]
[394630819,1763796641138,-785.57,0.00016438,2]
[394630820,1763796641148,-319.72550428,0.00016438,2]
[394630821,1763796641157,-500.0,0.00016438,2]
[394630822,1763796641166,-564.57069539,0.00016438,2]
[394630823,1763796641175,-500.0,0.00016438,2]
[394630824,1763796641184,-549.74,0.00016438,2]
[394630825,1763796641193,-500.0,0.00016438,2]
[394630826,1763796641202,-500.0,0.00016438,2]
[394630827,1763796641211,-526.38,0.00016438,2]
[394630828,1763796641222,-393.75670834,0.00016438,2]
[394630829,1763796641231,-864.39,0.00016438,2]
[394630830,1763796641241,-718.05,0.00016438,2]
[394630831,1763796641250,-500.0,0.00016438,2]
[394630832,1763796641261,-500.0,0.00016438,2]
[394630833,1763796641270,-500.0,0.00016438,2]
[394630834,1763796641280,-828.05,0.00016438,2]
[394630835,1763796641292,-500.0,0.00016438,2]
[394630836,1763796641302,-500.0,0.00016438,2]
[394630837,1763796641312,-500.0,0.00016438,2]
[394630838,1763796641322,-637.36,0.00016438,2]
[394630839,1763796641331,-500.0,0.00016438,2]
[394630840,1763796641341,-1536.52,0.00016438,2]
[394630841,1763796641352,-528.56,0.00016438,2]
[394630842,1763796641361,-726.93,0.00016438,2]
[394630843,1763796641370,-623.05,0.00016438,2]
[394630844,1763796641379,-500.0,0.00016438,2]
[394630845,1763796641388,-500.0,0.00016438,2]
[394630846,1763796641397,-500.0,0.00016438,2]
[394630847,1763796641406,-895.25,0.00016438,2]
[394630848,1763796641416,-549.83894759,0.00016438,2]
[394630849,1763796641426,-500.0,0.00016438,2]
[394630850,1763796641435,-412.58851354,0.00016438,2]
[394630851,1763796641445,-500.0,0.00016438,2]
[394630852,1763796641454,-378.44629074,0.00016438,2]
[394630853,1763796641464,-766.35,0.00016438,2]
[394630854,1763796641478,-450.93296028,0.00016438,2]
[394630855,1763796641487,-622.45,0.00016438,2]
[394630856,1763796641496,-723.23,0.00016438,2]
[394630857,1763796641507,-1084.02,0.00016438,2]
[394630858,1763796641516,-377.95386735,0.00016438,2]
[394630859,1763796641526,-424.05122877,0.00016438,2]
[394630860,1763796641535,-812.04,0.00016438,2]
[394630861,1763796641546,-500.0,0.00016438,2]
[394630862,1763796641555,-500.0,0.00016438,2]
[394630863,1763796641565,-500.0,0.00016438,2]
[394630864,1763796641574,-469.11182427,0.00016438,2]
[394630865,1763796641584,-617.03,0.00016438,2]
[394630866,1763796641594,-500.0,0.00016438,2]
[394630867,1763796641603,-935.74,0.00016438,2]
[394630868,1763796641613,-500.0,0.00016438,2]
[394630869,1763796641622,-500.0,0.00016438,2]
[394630870,1763796641632,-500.0,0.00016438,2]
[394630871,1763796641643,-500.0,0.00016438,2]
[394630872,1763796641652,-500.0,0.00016438,2]
[394630873,1763796641662,-638.76,0.00016438,2]
[394630874,1763796641671,-796.12,0.00016438,2]
[394630875,1763796641680,-500.0,0.00016438,2]
[394630876,1763796641690,-500.0,0.00016438,2]
[394630877,1763796641699,-609.19,0.00016438,2]
[394630878,1763796641708,-500.0,0.00016438,2]
[394630879,1763796641720,-1236.5,0.00016438,2]
[394630880,1763796641729,-1841.35,0.00016438,2]
[394630881,1763796641738,-500.0,0.00016438,2]
[394630882,1763796641747,-500.0,0.00016438,2]
[394630883,1763796641756,-596.39,0.00016438,2]
[394630884,1763796641766,-500.0,0.00016438,2]
[394630885,1763796641776,-500.0,0.00016438,2]
[394630886,1763796641784,-500.0,0.00016438,2]
[394630887,1763796641792,-500.0,0.00016438,2]
[394630888,1763796641800,-500.0,0.00016438,2]
[394630889,1763796641808,-683.36,0.00016438,2]
[394630890,1763796642052,-500.0,0.00016438,2]
[394630891,1763796642062,-521.07,0.00016438,2]
[394630892,1763796642071,-751.71,0.00016438,2]
[394630893,1763796642080,-500.0,0.00016438,2]
[394630894,1763796642089,-500.0,0.00016438,2]
[394630895,1763796642099,-500.0,0.00016438,2]
[394630896,1763796642108,-500.0,0.00016438,2]
[394630897,1763796642117,-500.0,0.00016438,2]
[394630898,1763796642126,-500.0,0.00016438,2]
[394630899,1763796642136,-500.0,0.00016438,2]
[394630900,1763796642145,-500.0,0.00016438,2]
[394630901,1763796642155,-500.0,0.00016438,2]
[394630902,1763796642164,-500.0,0.00016438,2]
[394630903,1763796642173,-500.0,0.00016438,2]
[394630904,1763796642182,-500.0,0.00016438,2]
[394630905,1763796642191,-500.0,0.00016438,2]
[394630906,1763796642200,-500.0,0.00016438,2]
[394630907,1763796642209,-500.0,0.00016438,2]
[394630908,1763796642220,-500.0,0.00016438,2]
[394630909,1763796642229,-500.0,0.00016438,2]
[394630910,1763796642238,-500.0,0.00016438,2]
[394630911,1763796642247,-500.0,0.00016438,2]
[394630912,1763796642256,-533.158809,0.00016438,2]
[394630913,1763796642265,-500.0,0.00016438,2]
[394630914,1763796642275,-571.19,0.00016438,2]
[394630915,1763796642284,-500.0,0.00016438,2]
[394630916,1763796642294,-500.0,0.00016438,2]
[394630917,1763796642303,-500.0,0.00016438,2]
[394630918,1763796642312,-500.0,0.00016438,2]
[394630919,1763796642321,-500.0,0.00016438,2]
[394630920,1763796642330,-1104.33,0.00016438,2]
[394630921,1763796642340,-500.0,0.00016438,2]
[394630922,1763796642349,-415.13184624,0.00016438,2]
[394630923,1763796642359,-500.0,0.00016438,2]
[394630924,1763796642368,-500.0,0.00016438,2]
[394630925,1763796642377,-726.99,0.00016438,2]
[394630926,1763796642386,-1166.8,0.00016438,2]
[394630927,1763796642395,-500.0,0.00016438,2]
[394630928,1763796642404,-1107.36,0.00016438,2]
[394630929,1763796642413,-658.18,0.00016438,2]
[394630930,1763796642423,-500.0,0.00016438,2]
[394630931,1763796642432,-152.04226331,0.00016438,2]
[394630932,1763796642442,-500.0,0.00016438,2]
[394630933,1763796642451,-500.0,0.00016438,2]
[394630934,1763796642461,-500.0,0.00016438,2]
[394630935,1763796642479,-500.0,0.00016438,2]
[394630936,1763796642488,-556.46,0.00016438,2]
[394630937,1763796642503,-500.0,0.00016438,2]
[394630938,1763796642515,-500.0,0.00016438,2]
[394630939,1763796642525,-533.99,0.00016438,2]
[394630940,1763796642536,-774.34,0.00016438,2]
[394630941,1763796642546,-500.0,0.00016438,2]
[394630942,1763796642557,-508.96786185,0.00016438,2]
[394630943,1763796642567,-500.0,0.00016438,2]
[394630944,1763796642577,-500.0,0.00016438,2]
[394630945,1763796642588,-500.0,0.00016438,2]
[394630946,1763796642598,-537.71,0.00016438,2]
[394630947,1763796642607,-689.57,0.00016438,2]
[394630948,1763796642617,-545.99,0.00016438,2]
[394630949,1763796642627,-500.0,0.00016438,2]
[394630950,1763796642637,-500.0,0.00016438,2]
[394630951,1763796642647,-500.0,0.00016438,2]
[394630952,1763796642657,-849.05,0.00016438,2]
[394630953,1763796642667,-500.0,0.00016438,2]
[394630954,1763796642678,-829.46,0.00016438,2]
[394630955,1763796642688,-747.29,0.00016438,2]
[394630956,1763796642698,-500.05,0.00016438,2]
[394630957,1763796642708,-859.94,0.00016438,2]
[394630958,1763796642720,-461.6913957,0.00016438,2]
[394630959,1763796642730,-500.0,0.00016438,2]
[394630960,1763796642741,-500.0,0.00016438,2]
[394630961,1763796642751,-500.0,0.00016438,2]
[394630962,1763796642761,-1155.96,0.00016438,2]
[394630963,1763796642770,-500.0,0.00016438,2]
[394630964,1763796642780,-500.0,0.00016438,2]
[394630965,1763796642790,-685.16,0.00016438,2]
[394630966,1763796642799,-500.0,0.00016438,2]
[394630967,1763796642809,-500.0,0.00016438,2]
[394630968,1763796642819,-500.0,0.00016438,2]
[394630969,1763796642828,-500.0,0.00016438,2]
[394630970,1763796642837,-500.0,0.00016438,2]
[394630971,1763796642847,-517.08445626,0.00016438,2]
[394630972,1763796642857,-500.0,0.00016438,2]
[394630973,1763796642866,-1915.48,0.00016438,2]
[394630974,1763796642881,-895.49,0.00016438,2]
[394630975,1763796642891,-500.0,0.00016438,2]
[394630976,1763796642901,-500.0,0.00016438,2]
[394630977,1763796642911,-500.0,0.00016438,2]
[394630978,1763796642921,-500.0,0.00016438,2]
[394630979,1763796642931,-500.0,0.00016438,2]
[394630980,1763796642942,-888.82,0.00016438,2]
[394630981,1763796642952,-500.0,0.00016438,2]
[394630982,1763796642962,-500.0,0.00016438,2]
[394630983,1763796642974,-478.71390443,0.00016438,2]
[394630984,1763796642984,-500.0,0.00016438,2]
[394630985,1763796642994,-925.18,0.00016438,2]
[394630986,1763796643003,-500.0,0.00016438,2]
[394630987,1763796643013,-1533.59,0.00016438,2]
[394630988,1763796643022,-500.0,0.00016438,2]
[394630989,1763796643032,-465.26678322,0.00016438,2]
[394630990,1763796643041,-500.0,0.00016438,2]
[394630991,1763796643051,-408.60324516,0.00016438,2]
[394630992,1763796643060,-500.0,0.00016438,2]
[394630993,1763796643070,-598.82,0.00016438,2]
[394630994,1763796643080,-778.87,0.00016438,2]
[394630995,1763796643089,-500.0,0.00016438,2]
[394630996,1763796643099,-1164.05,0.00016438,2]
[394630997,1763796643108,-500.0,0.00016438,2]
[394630998,1763796643118,-500.0,0.00016438,2]
[394630999,1763796643127,-500.0,0.00016438,2]
[394631000,1763796643137,-500.0,0.00016438,2]
[394631001,1763796643147,-500.0,0.00016438,2]
[394631002,1763796643158,-500.0,0.00016438,2]
[394631003,1763796643168,-329.15267384,0.00016438,2]
[394631004,1763796643177,-983.24,0.00016438,2]
[394631005,1763796643187,-910.99,0.00016438,2]
[394631006,1763796643197,-694.87,0.00016438,2]
[394631007,1763796643207,-530.90625233,0.00016438,2]
[394631008,1763796643218,-500.0,0.00016438,2]
[394631009,1763796643227,-500.0,0.00016438,2]
[394631010,1763796643240,-500.0,0.00016438,2]
[394631011,1763796643250,-500.0,0.00016438,2]
[394631012,1763796643259,-500.0,0.00016438,2]
[394631013,1763796643270,-500.0,0.00016438,2]
[394631014,1763796643280,-500.0,0.00016438,2]
[394631015,1763796643290,-500.0,0.00016438,2]
[394631016,1763796643300,-500.0,0.00016438,2]
[394631017,1763796643310,-536.67,0.00016438,2]
[394631018,1763796643321,-500.0,0.00016438,2]
[394631019,1763796643330,-554.76803854,0.00016438,2]
[394631020,1763796643340,-500.0,0.00016438,2]
[394631021,1763796643350,-500.0,0.00016438,2]
[394631022,1763796643360,-500.0,0.00016438,2]
[394631023,1763796643370,-500.0,0.00016438,2]
[394631024,1763796643381,-500.0,0.00016438,2]
[394631025,1763796643391,-912.5,0.00016438,2]
[394631026,1763796643401,-500.0,0.00016438,2]
[394631027,1763796643411,-882.7,0.00016438,2]
[394631028,1763796643420,-500.0,0.00016438,2]
[394631029,1763796643436,-500.0,0.00016438,2]
[394631030,1763796643445,-936.92,0.00016438,2]
[394631031,1763796643455,-972.88,0.00016438,2]
[394631032,1763796643467,-500.0,0.00016438,2]
[394631033,1763796643482,-500.0,0.00016438,2]
[394631034,1763796643492,-500.0,0.00016438,2]
[394631035,1763796643502,-608.82,0.00016438,2]
[394631036,1763796643513,-500.0,0.00016438,2]
[394631037,1763796643524,-500.0,0.00016438,2]
[394631038,1763796643533,-500.0,0.00016438,2]
[394631039,1763796643543,-500.0,0.00016438,2]
[394631040,1763796643555,-500.0,0.00016438,2]
[394631041,1763796643566,-500.0,0.00016438,2]
[394631042,1763796643576,-657.92,0.00016438,2]
[394631043,1763796643586,-500.0,0.00016438,2]
[394631044,1763796643596,-791.83,0.00016438,2]
[394631045,1763796643606,-808.76,0.00016438,2]
[394631046,1763796643617,-500.0,0.00016438,2]
[394631047,1763796643626,-521.21125437,0.00016438,2]
[394631048,1763796643640,-500.0,0.00016438,2]
[394631049,1763796643649,-500.0,0.00016438,2]
[394631050,1763796643659,-500.0,0.00016438,2]
[394631051,1763796643669,-500.0,0.00016438,2]
[394631052,1763796643679,-500.0,0.00016438,2]
[394631053,1763796643689,-500.0,0.00016438,2]
[394631054,1763796643699,-886.29,0.00016438,2]
[394631055,1763796643709,-500.0,0.00016438,2]
[394631056,1763796643720,-321.89065832,0.00016438,2]
[394631057,1763796643730,-500.0,0.00016438,2]
[394631058,1763796643739,-640.9,0.00016438,2]
[394631059,1763796643749,-500.0,0.00016438,2]
[394631060,1763796643759,-500.0,0.00016438,2]
[394631061,1763796643768,-500.0,0.00016438,2]
[394631062,1763796643778,-1011.02,0.00016438,2]
[394631063,1763796643788,-500.0,0.00016438,2]
[394631064,1763796643798,-500.0,0.00016438,2]
[394631065,1763796643807,-935.99,0.00016438,2]
[394631066,1763796643817,-500.0,0.00016438,2]
[394631067,1763796643829,-1147.71,0.00016438,2]
[394631068,1763796643840,-500.0,0.00016438,2]
[394631069,1763796643851,-418.02172199,0.00016438,2]
[394631070,1763796643862,-500.0,0.00016438,2]
[394631071,1763796643872,-636.32,0.00016438,2]
[394631072,1763796643882,-400.0,0.00016438,2]
[394631073,1763796643892,-500.0,0.00016438,2]
[394631074,1763796643901,-500.0,0.00016438,2]
[394631075,1763796643911,-500.0,0.00016438,2]
[394631076,1763796643921,-639.95,0.00016438,2]
[394631077,1763796643930,-872.31,0.00016438,2]
[394631078,1763796643940,-500.0,0.00016438,2]
[394631079,1763796643949,-500.0,0.00016438,2]
[394631080,1763796643959,-422.73107915,0.00016438,2]
[394631081,1763796643969,-500.0,0.00016438,2]
[394631082,1763796643979,-500.0,0.00016438,2]
[394631083,1763796643988,-398.74210172,0.00016438,2]
[394631084,1763796643999,-500.0,0.00016438,2]
[394631085,1763796644009,-845.8,0.00016438,2]
[394631086,1763796644018,-692.14,0.00016438,2]
[394631087,1763796644027,-500.0,0.00016438,2]
[394631088,1763796644037,-500.0,0.00016438,2]
[394631089,1763796644046,-656.46,0.00016438,2]
[394631090,1763796644056,-500.0,0.00016438,2]
[394631091,1763796644065,-500.0,0.00016438,2]
[394631092,1763796644075,-500.0,0.00016438,2]
[394631093,1763796644084,-500.0,0.00016438,2]
[394631094,1763796644093,-500.0,0.00016438,2]
[394631095,1763796644103,-931.63,0.00016438,2]
[394631096,1763796644113,-500.0,0.00016438,2]
[394631097,1763796644122,-500.0,0.00016438,2]
[394631098,1763796644132,-542.46,0.00016438,2]
[394631099,1763796644143,-609.70781548,0.00016438,2]
[394631100,1763796644154,-835.61,0.00016438,2]
[394631101,1763796644164,-651.02,0.00016438,2]
[394631102,1763796644175,-500.0,0.00016438,2]
[394631103,1763796644184,-500.0,0.00016438,2]
[394631104,1763796644194,-549.68,0.00016438,2]
[394631105,1763796644205,-500.0,0.00016438,2]
[394631106,1763796644215,-500.0,0.00016438,2]
[394631107,1763796644236,-500.0,0.00016438,2]
[394631108,1763796644248,-500.0,0.00016438,2]
[394631109,1763796644258,-500.0,0.00016438,2]
[394631110,1763796644268,-500.0,0.00016438,2]
[394631111,1763796644278,-873.25,0.00016438,2]
[394631112,1763796644288,-589.41,0.00016438,2]
[394631113,1763796644298,-500.0,0.00016438,2]
[394631114,1763796644307,-500.0,0.00016438,2]
[394631115,1763796644318,-500.0,0.00016438,2]
[394631116,1763796644328,-594.95,0.00016438,2]
[394631117,1763796644338,-500.0,0.00016438,2]
[394631118,1763796644348,-500.0,0.00016438,2]
[394631120,1763796644358,-500.0,0.00016438,2]
[394631121,1763796644368,-500.0,0.00016438,2]
[394631123,1763796644378,-617.94,0.00016438,2]
[394631125,1763796644388,-500.0,0.00016438,2]
[394631127,1763796644398,-1413.57,0.00016438,2]
[394631129,1763796644408,-500.0,0.00016438,2]
[394631130,1763796644418,-500.0,0.00016438,2]
[394631131,1763796644428,-500.0,0.00016438,2]
[394631132,1763796644438,-205.78740145,0.00016438,2]
[394631133,1763796644450,-1156.53,0.00016438,2]
[394631134,1763796644460,-500.0,0.00016438,2]
[394631135,1763796644474,-1448.58,0.00016438,2]
[394631136,1763796644484,-500.0,0.00016438,2]
[394631137,1763796644494,-604.87,0.00016438,2]
[394631138,1763796644504,-1003.3,0.00016438,2]
[394631139,1763796644687,-500.0,0.00016438,2]
[394631140,1763796644698,-500.0,0.00016438,2]
[394631141,1763796644709,-500.0,0.00016438,2]
[394631142,1763796644718,-411.81233052,0.00016438,2]
[394631143,1763796644731,-500.0,0.00016438,2]
[394631144,1763796644741,-500.0,0.00016438,2]
[394631145,1763796644750,-500.0,0.00016438,2]
[394631146,1763796644759,-1122.11,0.00016438,2]
[394631147,1763796644768,-549.59,0.00016438,2]
[394631148,1763796644777,-500.0,0.00016438,2]
[394631149,1763796644786,-500.0,0.00016438,2]
[394631150,1763796644795,-500.0,0.00016438,2]
[394631151,1763796644804,-500.0,0.00016438,2]
[394631152,1763796644813,-500.0,0.00016438,2]
[394631153,1763796644823,-500.0,0.00016438,2]
[394631154,1763796644832,-500.0,0.00016438,2]
[394631155,1763796644841,-500.0,0.00016438,2]
[394631156,1763796644850,-951.48,0.00016438,2]
[394631157,1763796644859,-530.49,0.00016438,2]
[394631158,1763796644868,-880.92,0.00016438,2]
[394631159,1763796644878,-500.0,0.00016438,2]
[394631160,1763796644887,-500.0,0.00016438,2]
[394631161,1763796644897,-500.0,0.00016438,2]
[394631162,1763796644907,-500.0,0.00016438,2]
[394631163,1763796644917,-500.0,0.00016438,2]
[394631164,1763796644930,-500.0,0.00016438,2]
[394631165,1763796644940,-1039.53,0.00016438,2]
[394631166,1763796644952,-906.91,0.00016438,2]
[394631167,1763796644962,-500.0,0.00016438,2]
[394631168,1763796644975,-886.33,0.00016438,2]
[394631169,1763796644985,-1164.7,0.00016438,2]
[394631170,1763796644994,-546.17874991,0.00016438,2]
[394631171,1763796645006,-500.0,0.00016438,2]
[394631172,1763796645015,-507.8438361,0.00016438,2]
[394631173,1763796645025,-500.0,0.00016438,2]
[394631174,1763796645034,-550.15714478,0.00016438,2]
[394631175,1763796645045,-599.72,0.00016438,2]
[394631176,1763796645056,-500.0,0.00016438,2]
[394631177,1763796645067,-500.0,0.00016438,2]
[394631178,1763796645076,-763.04,0.00016438,2]
[394631179,1763796645085,-500.0,0.00016438,2]
[394631180,1763796645095,-500.0,0.00016438,2]
[394631181,1763796645105,-500.0,0.00016438,2]
[394631182,1763796645114,-500.0,0.00016438,2]
[394631183,1763796645128,-1242.88,0.00016438,2]
[394631184,1763796645138,-500.0,0.00016438,2]
[394631185,1763796645148,-500.0,0.00016438,2]
[394631186,1763796645157,-419.96479887,0.00016438,2]
[394631187,1763796645167,-500.0,0.00016438,2]
[394631188,1763796645176,-500.0,0.00016438,2]
[394631189,1763796645186,-500.0,0.00016438,2]
[394631190,1763796645196,-1164.88,0.00016438,2]
[394631191,1763796645206,-500.0,0.00016438,2]
[394631192,1763796645215,-500.0,0.00016438,2]
[394631193,1763796645228,-500.0,0.00016438,2]
[394631194,1763796645238,-500.0,0.00016438,2]
[394631195,1763796645248,-500.0,0.00016438,2]
[394631196,1763796645258,-500.0,0.00016438,2]
[394631197,1763796645267,-500.0,0.00016438,2]
[394631198,1763796645278,-596.91,0.00016438,2]
[394631199,1763796645287,-500.0,0.00016438,2]
[394631200,1763796645298,-500.0,0.00016438,2]
[394631201,1763796645307,-500.0,0.00016438,2]
[394631202,1763796645316,-500.0,0.00016438,2]
[394631203,1763796645326,-500.0,0.00016438,2]
[394631204,1763796645335,-500.0,0.00016438,2]
[394631205,1763796645345,-500.0,0.00016438,2]
[394631206,1763796645354,-460.24084523,0.00016438,2]
[394631207,1763796645363,-500.0,0.00016438,2]
[394631208,1763796645373,-633.40203517,0.00016438,2]
[394631209,1763796645384,-500.0,0.00016438,2]
[394631210,1763796645393,-500.0,0.00016438,2]
[394631211,1763796645403,-726.97,0.00016438,2]
[394631212,1763796645413,-500.0,0.00016438,2]
[394631213,1763796645424,-500.0,0.00016438,2]
[394631214,1763796645433,-500.0,0.00016438,2]
[394631215,1763796645443,-500.0,0.00016438,2]
[394631216,1763796645453,-201.70086876,0.00016438,2]
[394631217,1763796645463,-500.0,0.00016438,2]
[394631218,1763796645478,-500.0,0.00016438,2]
[394631219,1763796645487,-500.0,0.00016438,2]
[394631220,1763796645497,-500.0,0.00016438,2]
[394631221,1763796645507,-500.0,0.00016438,2]
[394631222,1763796645516,-671.23,0.00016438,2]
[394631223,1763796645527,-500.0,0.00016438,2]
[394631224,1763796645536,-433.39156672,0.00016438,2]
[394631225,1763796645545,-500.0,0.00016438,2]
[394631226,1763796645557,-627.52,0.00016438,2]
[394631227,1763796645567,-696.9,0.00016438,2]
[394631228,1763796645576,-933.33,0.00016438,2]
[394631229,1763796645586,-500.0,0.00016438,2]
[394631230,1763796645595,-500.0,0.00016438,2]
[394631231,1763796645604,-601.14,0.00016438,2]
[394631232,1763796645614,-500.0,0.00016438,2]
[394631233,1763796645624,-500.0,0.00016438,2]
[394631234,1763796645633,-500.0,0.00016438,2]
[394631235,1763796645643,-749.56,0.00016438,2]
[394631236,1763796645652,-500.0,0.00016438,2]
[394631237,1763796645662,-500.0,0.00016438,2]
[394631238,1763796645671,-999.3,0.00016438,2]
[394631239,1763796645681,-500.0,0.00016438,2]
[394631240,1763796645690,-825.61,0.00016438,2]
[394631241,1763796645699,-500.0,0.00016438,2]
[394631242,1763796645709,-723.71,0.00016438,2]
[394631243,1763796645719,-500.0,0.00016438,2]
[394631244,1763796645728,-500.0,0.00016438,2]